bitfinex-derivatives/quotes_ETHF0:USTF0_20240829
["timestamp","ask_amount","ask_price","bid_price","bid_amount"]
[1724931783031,5.16784059,2559.4,2559.3,3.81578595]
[1724931783332,5.53825059,2559.4,2559.3,3.81578595]
[1724931783526,5.53825059,2559.4,2559.3,0.60798595]
[1724931783724,0.39066,2559.2,2558.9,3.76069]
[1724931784028,4.08104607,2559.1,2559.0,1.48241344]
[1724931784422,7.96884607,2559.1,2559.0,1.48241344]
[1724931784618,7.96884607,2559.1,2559.0,1.48242055]
[1724931784823,7.96884607,2559.1,2559.0,0.60808533]
[1724931785027,8.35950607,2559.1,2559.0,0.60808533]
[1724931785331,4.01897983,2560.6,2559.4,0.39061]
[1724931785332,0.39057,2559.7,2559.4,0.39061]
[1724931785520,0.39057,2559.7,2559.0,15.61693378]
[1724931785521,1.43798,2559.6,2559.5,0.60808533]
[1724931785717,5.20165175,2559.6,2559.5,0.60808533]
[1724931785924,0.9868,2559.6,2559.3,0.39061]
[1724931786123,0.9868,2559.6,2559.5,0.6078398]
[1724931786124,0.9666,2559.6,2559.5,0.6078398]
[1724931786427,5.14105175,2559.6,2559.5,0.6078398]
[1724931786622,0.9464,2559.6,2559.5,5.24237149]
[1724931788420,5.21751097,2559.6,2559.5,5.24237149]
[1724931789223,5.21751097,2559.6,2559.5,4.36837544]
[1724931789432,5.21751097,2559.6,2559.5,5.24224524]
[1724931790737,1.1343,2559.8,2559.6,0.39057]
[1724931791040,2.2123,2559.8,2559.7,0.60777544]
[1724931791237,2.60285,2559.8,2559.7,0.60777544]
[1724931791445,7.08827022,2559.8,2559.7,0.60777544]
[1724931792639,10.99468022,2559.8,2559.6,0.39058]
[1724931792840,7.08828022,2559.8,2559.7,0.60776735]
[1724931793336,0.39058,2559.7,2559.2,3.3902]
[1724931793530,7.08828022,2559.8,2559.6,0.39058]
[1724931793731,2.60286,2559.8,2559.7,0.60778283]
[1724931794038,11.02749454,2559.8,2559.7,0.60778283]
[1724931794533,0.39058,2559.6,2559.5,3.76059]
[1724931794733,0.39058,2559.7,2559.5,5.24231928]
[1724931794939,0.39058,2559.7,2559.6,0.60780872]
[1724931795234,8.52051329,2559.7,2559.6,0.60780872]
[1724931795741,8.52051329,2559.7,2559.5,3.37]
[1724931795742,0.39058,2559.6,2559.5,3.37]
[1724931796039,4.78414451,2559.6,2559.5,3.97775035]
[1724931796432,9.66781451,2559.6,2559.5,0.60775035]
[1724931796933,9.27723451,2559.6,2559.2,3.78084]
[1724931797134,0.39062,2559.4,2559.3,1.48254599]
[1724931797343,4.39356451,2559.6,2559.3,6.40854175]
[1724931797541,3.2078,2559.7,2559.5,3.37]
[1724931797741,3.2078,2559.7,2559.6,0.99872153]
[1724931798146,3.59837,2559.7,2559.6,0.99872153]
[1724931798336,3.2078,2559.7,2559.6,0.99872153]
[1724931799036,3.59837,2559.7,2559.6,0.99872153]
[1724931799242,3.59837,2559.7,2559.6,0.39058]
[1724931799243,3.2078,2559.7,2559.6,0.39058]
[1724931799541,3.2078,2559.7,2559.6,0.99856241]
[1724931799736,3.2078,2559.7,2559.6,0.99855767]
[1724931800337,3.2078,2559.7,2559.6,0.99855503]
[1724931801543,7.35453714,2559.7,2559.6,0.99855503]
[1724931802848,7.35453714,2559.7,2559.6,0.99868114]
[1724931803043,4.14673714,2559.7,2559.6,0.99868114]
[1724931805143,4.53730714,2559.7,2559.6,0.60810114]
[1724931806148,4.53730714,2559.7,2559.5,0.3906]
[1724931806348,4.53730714,2559.7,2559.6,0.60821637]
[1724931807050,4.14673714,2559.7,2559.6,0.99879637]
[1724931809650,4.14673714,2559.7,2559.6,1.87320314]
[1724931809843,4.14673714,2559.7,2559.6,1.87317792]
[1724931810045,4.14673714,2559.7,2559.6,0.99871651]
[1724931810353,4.14673714,2559.7,2559.6,1.87317613]
[1724931810554,4.14673714,2559.7,2559.6,0.99871651]
[1724931810853,4.14673714,2559.7,2559.6,1.87317722]
[1724931811056,2.1654,2559.8,2559.7,0.39057]
[1724931811349,2.1654,2559.8,2559.7,1.87302002]
[1724931811552,1.078,2559.8,2559.7,1.87302002]
[1724931811946,1.078,2559.8,2559.7,1.87307789]
[1724931812144,1.078,2559.8,2559.7,0.99870651]
[1724931812850,1.078,2559.8,2559.7,0.60813651]
[1724931812851,9.84333112,2559.8,2559.7,0.60813651]
[1724931813152,13.05113112,2559.8,2559.7,0.60813651]
[1724931813654,9.84333112,2559.8,2559.7,0.60813651]
[1724931813849,9.14473112,2559.8,2559.7,0.60813651]
[1724931814448,5.93693112,2559.8,2559.7,0.60813651]
[1724931814648,5.54638112,2559.8,2559.7,0.99870651]
[1724931816446,5.54638112,2559.8,2559.7,0.39057]
[1724931816640,5.54638112,2559.8,2559.7,0.99869197]
[1724931816850,5.54638112,2559.8,2559.7,1.87302191]
[1724931817451,4.46838112,2559.8,2559.7,1.87302191]
[1724931817650,0.00586682,2559.9,2559.8,0.39055]
[1724931817844,0.00586682,2559.9,2559.8,9.14940191]
[1724931818046,0.00586682,2559.9,2559.8,4.85245191]
[1724931818047,0.39640682,2559.9,2559.8,4.85245191]
[1724931818245,0.00586682,2559.9,2559.8,9.14940191]
[1724931818948,0.00586682,2559.9,2559.8,16.16822921]
[1724931819151,0.00586682,2559.9,2559.8,18.86720921]
[1724931819748,0.00586682,2559.9,2559.8,19.46978482]
[1724931819949,0.00586682,2559.9,2559.8,19.4686817]
[1724931820155,0.00586682,2559.9,2559.8,18.86639108]
[1724931820348,0.00586682,2559.9,2559.8,19.4686817]
[1724931820956,0.00586682,2559.9,2559.8,60.2686817]
[1724931821152,4.02206072,2560.8,2559.8,60.2686817]
[1724931821153,3.04603072,2561.2,2560.3,0.97618]
[1724931821353,2.2387,2561.1,2561.0,3.76037]
[1724931821559,6.61398073,2561.1,2561.0,4.36825583]
[1724931821853,2.2387,2561.1,2561.0,4.36825583]
[1724931822160,2.2387,2561.1,2561.0,7.66517]
[1724931822353,2.2387,2561.1,2561.0,8.27256987]
[1724931823263,2.2387,2561.1,2561.0,7.66517]
[1724931823452,2.2387,2561.1,2561.0,8.27254723]
[1724931823653,4.34506682,2561.3,2561.0,10.4826]
[1724931823654,0.00586682,2561.3,2561.0,10.4826]
[1724931823861,1.0562,2561.6,2561.2,3.76034]
[1724931824058,1.0562,2561.6,2561.5,6.96809]
[1724931824665,1.0562,2561.6,2561.5,10.4818]
[1724931824867,1.0562,2561.6,2561.5,10.87209]
[1724931825253,2.2876,2561.9,2561.5,10.4818]
[1724931825557,0.00586682,2561.8,2561.6,0.39027]
[1724931826255,0.00586682,2561.8,2561.5,7.25908]
[1724931826459,0.00586682,2561.8,2561.7,3.37]
[1724931827253,0.39611682,2561.8,2561.7,3.37]
[1724931827455,8.00916075,2561.8,2561.5,3.37]
[1724931827654,0.39028,2561.6,2561.5,3.37]
[1724931827851,4.3664,2561.7,2560.9,3.2078]
[1724931828064,5.22209826,2561.6,2561.2,3.37]
[1724931828458,9.12609826,2561.6,2561.2,3.37]
[1724931828658,0.39032,2561.3,2561.2,3.37]
[1724931829060,8.65961452,2561.3,2561.2,3.37]
[1724931829565,9.71741452,2561.3,2561.2,3.37]
[1724931830968,5.81341452,2561.3,2561.2,3.37]
[1724931831168,9.71741452,2561.3,2561.2,3.37]
[1724931831463,9.71741452,2561.3,2560.9,3.2078]
[1724931831464,5.42309452,2561.3,2560.9,3.2078]
[1724931831766,1.52434,2561.2,2561.1,3.37]
[1724931832269,9.69882171,2561.2,2561.1,3.37]
[1724931832657,10.67468171,2561.2,2561.1,3.37]
[1724931832852,10.67468171,2561.2,2560.9,3.37]
[1724931832853,1.3663,2561.0,2560.9,3.37]
[1724931833061,4.5741,2561.0,2560.9,3.37]
[1724931833271,12.64692324,2561.0,2560.9,3.37]
[1724931833771,11.67099324,2561.0,2560.9,3.37]
[1724931834160,11.28062324,2561.0,2560.9,3.37]
[1724931834362,7.76619324,2561.0,2560.9,3.37]
[1724931834764,7.37582324,2561.0,2560.9,3.37]
[1724931835471,3.2078,2561.0,2560.9,3.76039]
[1724931835769,3.2078,2561.0,2560.9,3.37]
[1724931835965,3.2078,2561.0,2560.9,3.76039]
[1724931837266,3.59817,2561.0,2560.9,3.37]
[1724931837468,7.82493164,2561.0,2560.9,3.37]
[1724931837973,11.72973164,2561.0,2560.9,3.37]
[1724931838163,8.52193164,2561.0,2560.9,3.37]
[1724931838468,7.43456164,2561.0,2560.9,3.37]
[1724931838660,7.82493164,2561.0,2560.9,3.37]
[1724931839075,7.43456164,2561.0,2560.9,3.37]
[1724931839471,11.72973164,2561.0,2560.9,3.37]
[1724931839972,0.39039,2560.9,2560.8,0.00586682]
[1724931840274,5.70166719,2560.9,2560.8,0.00586682]
[1724931840472,9.60646719,2560.9,2560.8,0.00586682]
[1724931840873,10.58243719,2560.9,2560.8,0.00586682]
[1724931841966,9.21607719,2560.9,2560.8,0.00586682]
[1724931842171,5.70166719,2560.9,2560.8,0.00586682]
[1724931844370,9.60646719,2560.9,2560.8,0.00586682]
[1724931845179,10.58243719,2560.9,2560.8,0.00586682]
[1724931845381,11.55840719,2560.9,2560.8,0.00586682]
[1724931846065,17.55840719,2560.9,2560.8,0.00586682]
[1724931846870,16.58243719,2560.9,2560.8,0.00586682]
[1724931847179,10.58243719,2560.9,2560.8,0.00586682]
[1724931847575,9.60646719,2560.9,2560.8,0.00586682]
[1724931848576,8.14807719,2560.9,2560.8,0.00586682]
[1724931848981,4.24327719,2560.9,2560.8,0.39626682]
[1724931849282,4.63366719,2560.9,2560.8,0.00586682]
[1724931849473,9.51443719,2560.9,2560.8,0.00586682]
[1724931849678,15.51443719,2560.9,2560.8,0.00586682]
[1724931849890,10.49040719,2560.9,2560.8,0.00586682]
[1724931850177,15.51443719,2560.9,2560.8,0.00586682]
[1724931850879,4.63366719,2560.9,2560.8,0.00586682]
[1724931851977,4.24327719,2560.9,2560.8,0.39626682]
[1724931852569,4.24327719,2560.9,2560.8,2.66066682]
[1724931854672,4.48509221,2561.1,2560.9,0.39038]
[1724931854877,0.39036,2561.1,2560.9,0.39038]
[1724931855279,4.09473221,2561.0,2560.9,0.39038]
[1724931855485,4.09473221,2561.0,2560.8,2.66065682]
[1724931855683,4.86370034,2561.1,2560.9,0.39038]
[1724931855883,0.39036,2561.1,2560.8,2.66065682]
[1724931856287,4.86372034,2561.0,2560.8,0.00586682]
[1724931856476,0.39039,2560.9,2560.8,0.00586682]
[1724931856681,1.50959,2560.9,2560.8,0.00586682]
[1724931856883,9.70404481,2560.9,2560.8,0.00586682]
[1724931857391,5.79924481,2560.9,2560.8,0.00586682]
[1724931858090,4.28965481,2560.9,2560.8,0.39626682]
[1724931858287,4.68004481,2560.9,2560.8,0.00586682]
[1724931858485,0.39039,2560.9,2560.8,0.00586682]
[1724931858789,8.6973726,2560.9,2560.8,0.00586682]
[1724931860181,4.7925726,2560.9,2560.8,0.00586682]
[1724931861593,9.6733426,2560.9,2560.8,0.00586682]
[1724931861977,8.6973726,2560.9,2560.8,0.00586682]
[1724931862178,4.4021826,2560.9,2560.8,0.00586682]
[1724931862388,4.4021826,2560.9,2560.8,0.39626682]
[1724931862585,2.57233,2561.3,2561.1,0.39035]
[1724931862780,2.57233,2561.3,2560.8,1.16716682]
[1724931862781,0.25135351,2561.1,2561.0,0.39036]
[1724931862985,0.39034,2561.2,2561.0,1.55906]
[1724931863382,4.30703785,2561.1,2561.0,1.55906]
[1724931864089,4.21316402,2561.2,2561.0,1.55906]
[1724931864384,0.39034,2561.2,2561.0,1.55906]
[1724931864788,4.90176211,2561.2,2561.0,1.55906]
[1724931865386,4.90177211,2561.2,2561.0,1.55906]
[1724931865587,0.39035,2561.1,2561.0,1.55906]
[1724931866296,4.50561687,2561.1,2561.0,1.55906]
[1724931866588,0.39039,2560.9,2560.8,0.00586682]
[1724931866990,4.61388623,2560.9,2560.8,0.00586682]
[1724931867295,4.22349623,2560.9,2560.8,7.50886682]
[1724931867494,3.2078,2561.4,2561.2,0.39033]
[1724931867797,3.59812,2561.4,2561.3,0.39032]
[1724931868092,0.00586682,2561.8,2561.6,0.39028]
[1724931868288,0.00586682,2561.8,2561.5,3.76028]
[1724931868289,0.39027,2561.7,2561.5,3.76028]
[1724931868596,0.98635133,2561.7,2561.5,3.76028]
[1724931869090,0.59608133,2561.7,2561.5,3.76029]
[1724931869287,0.98635133,2561.7,2561.5,3.76029]
[1724931869492,0.59608133,2561.7,2561.6,0.39028]
[1724931871186,0.59608133,2561.7,2561.6,7.66428]
[1724931871494,0.59608133,2561.7,2561.6,8.27103937]
[1724931872185,0.98634133,2561.7,2561.6,0.60675937]
[1724931872385,3.89488133,2561.7,2561.5,3.76029]
[1724931872590,3.89488133,2561.7,2561.6,0.39028]
[1724931872591,0.59608133,2561.7,2561.6,0.39028]
[1724931872897,0.59608133,2561.7,2561.6,4.36702048]
[1724931873089,0.59608133,2561.7,2561.6,8.27097588]
[1724931873295,0.59608133,2561.7,2561.6,7.66428]
[1724931873795,0.59608133,2561.7,2561.6,8.2709543]
[1724931873983,0.00586682,2561.8,2561.7,0.39026]
[1724931874390,4.3647625,2561.8,2561.6,3.37]
[1724931874592,0.39026,2561.7,2561.6,3.37]
[1724931874988,4.7550225,2561.8,2561.6,3.76028]
[1724931875602,4.3647625,2561.8,2561.7,0.39026]
[1724931876093,4.3647625,2561.8,2561.7,1.53476]
[1724931876699,4.7550125,2561.8,2561.6,3.76027]
[1724931876999,1.50166,2561.7,2561.5,0.39029]
[1724931877196,1.50166,2561.7,2561.4,4.9048]
[1724931877197,0.39029,2561.6,2561.4,4.9048]
[1724931877886,1.1114,2561.7,2561.2,3.37]
[1724931877887,4.3770368,2561.5,2561.2,3.37]
[1724931878093,4.3770368,2561.5,2560.8,4.46986682]
[1724931878293,4.3770368,2561.6,2561.1,0.39035]
[1724931878495,0.39033,2561.3,2561.0,3.76036]
[1724931878803,0.3903,2561.5,2561.3,0.39032]
[1724931878990,4.34303685,2561.6,2561.3,0.39031]
[1724931879194,0.39034,2561.3,2561.0,3.76036]
[1724931879394,0.9757,2561.6,2561.0,3.76037]
[1724931879395,2.2214,2561.2,2561.0,3.76037]
[1724931879587,5.78641052,2561.2,2561.0,3.37]
[1724931879788,1.50175,2561.2,2561.0,3.37]
[1724931880090,0.39031,2561.4,2561.1,0.39035]
[1724931880597,4.50088179,2561.3,2561.1,0.39035]
[1724931880798,4.89122179,2561.3,2561.0,3.76036]
[1724931881004,1.0833,2561.2,2561.0,3.76036]
[1724931881593,1.1394,2561.3,2561.0,3.37]
[1724931881799,3.2078,2561.7,2561.2,3.37]
[1724931882104,4.07186228,2561.6,2561.5,3.76029]
[1724931882291,4.07186228,2561.6,2561.5,3.37]
[1724931883502,0.3903,2561.5,2561.3,2.55161]
[1724931883693,4.07186228,2561.6,2561.2,3.37]
[1724931883887,4.44625955,2561.4,2561.3,0.39032]
[1724931884085,4.44625955,2561.4,2561.2,4.534]
[1724931884086,4.44625955,2561.6,2561.4,0.3903]
[1724931884491,0.39028,2561.6,2561.4,0.3903]
[1724931884699,0.39032,2561.4,2561.2,3.76033]
[1724931885094,4.47396655,2561.3,2561.2,3.76033]
[1724931885492,4.47396655,2561.5,2561.3,0.39031]
[1724931885793,0.39029,2561.6,2561.3,0.39031]
[1724931885995,0.39029,2561.6,2561.4,0.39031]
[1724931886198,4.48396143,2561.5,2561.4,0.39031]
[1724931886697,0.39031,2561.4,2561.3,1.0772]
[1724931886889,0.39031,2561.4,2561.2,3.76033]
[1724931887097,4.3573687,2561.4,2561.2,3.76033]
[1724931887407,1.1359,2561.3,2561.2,3.76033]
[1724931888390,1.52622,2561.3,2561.2,3.37]
[1724931888595,2.64962,2561.3,2561.2,3.37]
[1724931888902,7.1723413,2561.3,2561.2,3.76034]
[1724931890606,6.7820213,2561.3,2561.2,3.76034]
[1724931890798,4.5227213,2561.3,2561.2,3.76034]
[1724931893103,4.9130413,2561.3,2561.2,3.76034]
[1724931893304,4.9130413,2561.3,2561.2,3.37]
[1724931893305,4.5227213,2561.3,2561.2,3.37]
[1724931893501,0.39036,2561.1,2561.0,3.37]
[1724931895006,0.39036,2561.1,2561.0,3.76037]
[1724931895309,3.75175,2561.2,2561.1,0.39035]
[1724931895604,3.2078,2561.4,2561.3,0.39032]
[1724931895803,3.2078,2561.4,2561.3,3.76032]
[1724931896003,7.72640758,2561.4,2561.3,3.76032]
[1724931897209,8.11671758,2561.4,2561.3,3.76032]
[1724931897405,7.72640758,2561.4,2561.3,3.76032]
[1724931897703,3.63117,2561.7,2561.6,0.39028]
[1724931898109,7.8873363,2561.7,2561.6,0.39028]
[1724931899109,0.39028,2561.6,2561.5,0.39028]
[1724931899610,4.65534767,2561.6,2561.5,0.39028]
[1724931900311,4.65534767,2561.6,2561.3,3.37]
[1724931900312,0.3903,2561.5,2561.4,0.3903]
[1724931900508,0.3903,2561.5,2561.3,3.37]
[1724931900706,0.39034,2561.2,2561.1,3.37]
[1724931900911,0.39034,2561.2,2561.1,3.97671879]
[1724931901209,4.68533179,2561.2,2561.1,3.97670352]
[1724931901410,6.92583179,2561.2,2561.1,3.76035]
[1724931901613,6.53549179,2561.2,2561.1,4.36706399]
[1724931901812,6.92583179,2561.2,2561.1,3.97671399]
[1724931902007,6.92583179,2561.2,2561.1,3.37]
[1724931902314,6.92583179,2561.2,2561.1,4.367085]
[1724931902613,4.29499179,2561.2,2561.1,8.271885]
[1724931902814,2.2705,2561.6,2561.5,0.39029]
[1724931903008,1.1285,2561.6,2561.5,3.76029]
[1724931903313,1.0755,2561.7,2561.6,0.39028]
[1724931903614,5.52669006,2561.7,2561.6,0.99668602]
[1724931904901,5.52669006,2561.7,2561.6,0.39028]
[1724931905101,5.52669006,2561.7,2561.6,0.99697599]
[1724931909921,5.52669006,2561.7,2561.6,0.39028]
[1724931910117,5.52669006,2561.7,2561.6,0.99671886]
[1724931910321,5.52669006,2561.7,2561.6,1.86861566]
[1724931910715,5.52669006,2561.7,2561.6,0.99671886]
[1724931911408,2.82579006,2561.7,2561.6,6.85211886]
[1724931911724,0.00586682,2561.8,2561.7,2.3416]
[1724931911911,2.2151,2562.3,2562.2,0.39019]
[1724931912116,2.2151,2562.3,2562.2,4.36635237]
[1724931912418,6.36481769,2562.3,2562.2,4.36633958]
[1724931912616,6.36481769,2562.3,2562.2,3.76019]
[1724931912617,6.75498769,2562.3,2562.2,3.76019]
[1724931912819,6.75498769,2562.3,2562.2,0.39019]
[1724931913014,0.39023,2561.9,2561.8,4.43093875]
[1724931913218,0.39023,2561.9,2561.8,1.06093875]
[1724931913416,8.64468943,2561.9,2561.8,1.66717796]
[1724931913716,4.74148943,2561.9,2561.8,1.66717796]
[1724931914022,4.35125943,2561.9,2561.8,1.66719796]
[1724931914412,4.46852279,2562.0,2561.9,0.39023]
[1724931914617,1.1335,2562.1,2562.0,0.39022]
[1724931914818,0.39019,2562.2,2562.1,0.3902]
[1724931915116,3.76128,2562.3,2562.2,0.39019]
[1724931915423,7.51460476,2562.3,2562.2,0.39019]
[1724931915823,11.41780476,2562.3,2561.9,2.1875]
[1724931916027,0.3902,2562.1,2562.0,0.6060995]
[1724931916326,0.3902,2562.1,2562.0,0.39021]
[1724931916327,4.62404329,2562.1,2562.0,0.39021]
[1724931916822,0.39023,2562.0,2561.9,0.39023]
[1724931917026,0.39023,2562.0,2561.9,0.99639139]
[1724931917327,4.24425559,2562.0,2561.9,0.99640139]
[1724931917516,3.76127,2562.3,2562.2,0.39019]
[1724931917915,8.22701774,2562.3,2562.2,0.39019]
[1724931918326,7.83684774,2562.3,2562.2,0.39019]
[1724931918716,8.22701774,2562.3,2562.2,0.39019]
[1724931919218,7.83684774,2562.3,2562.2,0.39019]
[1724931919726,0.3902,2562.2,2562.1,0.39019]
[1724931920118,4.48241643,2562.2,2562.1,0.39019]
[1724931920519,4.87260643,2562.2,2562.1,0.39019]
[1724931920922,4.48241643,2562.2,2562.1,0.39019]
[1724931921130,4.87260643,2562.2,2562.1,0.39019]
[1724931921617,4.48241643,2562.2,2562.1,0.39019]
[1724931922417,4.87260643,2562.2,2562.1,0.39019]
[1724931923217,0.3902,2562.1,2562.0,3.76021]
[1724931923426,0.39023,2562.0,2561.9,0.39022]
[1724931923631,0.39023,2562.0,2561.9,0.99630971]
[1724931923832,4.64812128,2562.0,2561.9,0.99630971]
[1724931924028,4.25789128,2562.0,2561.9,0.99630971]
[1724931924229,4.64811128,2562.0,2561.9,0.60608971]
[1724931924433,4.64811128,2562.0,2561.6,4.5219]
[1724931924434,0.39028,2561.7,2561.6,0.39027]
[1724931924729,0.39026,2561.8,2561.7,0.39025]
[1724931925134,4.50315512,2561.8,2561.7,0.39025]
[1724931925929,4.11289512,2561.8,2561.7,0.39025]
[1724931926229,4.11289512,2561.8,2561.7,1.97215019]
[1724931926538,1.0702,2561.9,2561.8,0.39025]
[1724931926928,5.2858478,2561.9,2561.8,0.39025]
[1724931927223,3.04982333,2562.5,2561.8,17.95845817]
[1724931927437,0.00379261,2562.5,2562.4,6.96796]
[1724931927620,0.00379261,2562.5,2562.4,8.44541817]
[1724931927827,0.00379261,2562.5,2562.4,12.34781817]
[1724931928123,0.00379261,2562.5,2562.4,18.34781817]
[1724931928322,2.61e-06,2562.5,2562.4,19.32321817]
[1724931928526,2.61e-06,2562.5,2562.4,18.34781817]
[1724931928834,2.61e-06,2562.5,2562.4,12.34781817]
[1724931929230,3.04603072,2563.2,2562.4,17.95765817]
[1724931929437,3.04603072,2563.2,2562.6,3.2078]
[1724931929638,3.04603072,2563.2,2563.1,3.37]
[1724931930027,7.43287916,2563.2,2562.9,6.96788]
[1724931930228,10.80287916,2563.2,2562.8,3.757]
[1724931930429,4.3049,2563.1,2562.8,3.757]
[1724931930636,1.0626,2563.0,2562.8,3.757]
[1724931930832,4.38684844,2563.0,2562.8,3.757]
[1724931931337,4.38684844,2563.0,2562.4,6.5778]
[1724931931637,4.38684844,2563.0,2562.5,1.1485]
[1724931931820,3.2078,2562.8,2562.4,3.2078]
[1724931932225,4.18287734,2562.7,2562.4,3.2078]
[1724931932432,1.0626,2562.6,2562.4,3.2078]
[1724931932634,2.2179,2562.6,2562.4,3.2078]
[1724931932834,4.18287734,2562.5,2562.4,3.2078]
[1724931933139,4.18287734,2562.5,2562.4,3.59796]
[1724931933338,4.286,2562.9,2562.5,0.39013]
[1724931933535,1.0782,2562.9,2562.6,0.39013]
[1724931933728,4.17403517,2562.8,2562.5,1.1485]
[1724931934033,4.17403517,2562.8,2562.4,3.2078]
[1724931934745,7.38183517,2562.8,2562.4,3.2078]
[1724931935136,4.17403517,2562.8,2562.4,3.59795]
[1724931935435,4.17403517,2562.8,2562.4,3.2078]
[1724931935436,7.38183517,2562.8,2562.4,3.2078]
[1724931935634,1.0782,2563.1,2562.4,10.4802]
[1724931935831,3.2078,2563.0,2562.7,0.39011]
[1724931936026,5.23054019,2563.1,2562.7,0.39011]
[1724931936238,4.15234019,2562.9,2562.8,0.3901]
[1724931936433,4.15234019,2562.9,2562.8,1.4933]
[1724931936631,3.06106427,2563.2,2562.8,1.4933]
[1724931936632,3.06106427,2563.2,2563.1,0.39005]
[1724931936838,3.06106427,2563.2,2563.0,0.39006]
[1724931937036,4.34958531,2563.1,2563.0,0.39006]
[1724931937227,7.41064958,2563.2,2562.9,0.39007]
[1724931937429,7.41064958,2563.2,2562.8,4.4732]
[1724931937430,3.06106427,2563.2,2562.8,4.4732]
[1724931937629,4.34958531,2563.1,2563.0,0.39006]
[1724931937832,5.44018531,2563.1,2562.8,3.37]
[1724931938038,1.1732,2563.0,2562.9,40.8]
[1724931938238,1.1732,2563.0,2562.9,41.19008]
[1724931938533,1.1732,2563.0,2562.9,0.39008]
[1724931938534,5.31615203,2563.0,2562.9,0.39008]
[1724931940243,0.3901,2562.8,2562.5,0.39014]
[1724931940440,0.39012,2562.7,2562.3,3.59796]
[1724931940742,4.09230809,2562.7,2562.4,0.39014]
[1724931940937,2.1575,2562.6,2562.5,0.39014]
[1724931941137,4.3498845,2562.9,2562.8,0.39008]
[1724931941436,1.1732,2563.0,2562.8,0.39009]
[1724931941737,2.1418,2563.2,2563.1,0.39005]
[1724931942043,3.2078,2563.3,2563.2,0.39003]
[1724931942431,7.41679206,2563.3,2563.2,0.39003]
[1724931943834,7.41679206,2563.3,2563.2,3.76003]
[1724931944043,7.80682206,2563.3,2562.6,1.0681]
[1724931944344,1.1377,2563.2,2562.6,1.0681]
[1724931944635,0.39009,2562.9,2562.7,0.39011]
[1724931944937,4.41701162,2562.8,2562.5,3.2078]
[1724931945140,4.80711162,2562.8,2562.6,0.39012]
[1724931945339,1.1377,2562.7,2562.6,0.39013]
[1724931945532,7.62481162,2563.0,2562.9,0.39008]
[1724931945734,1.1632,2563.1,2562.5,4.49]
[1724931945735,1.1632,2563.1,2563.0,0.39007]
[1724931946742,1.1377,2563.4,2563.2,0.39002]
[1724931946941,1.51402,2563.3,2563.1,0.39004]
[1724931947145,5.25973238,2563.3,2563.2,0.39003]
[1724931947743,5.64975238,2563.3,2563.1,0.39004]
[1724931948037,0.39003,2563.2,2563.0,0.39006]
[1724931948439,1.51403,2563.3,2563.1,0.39005]
[1724931948634,4.46727118,2563.1,2562.8,3.2078]
[1724931948841,4.46727118,2563.1,2563.0,0.39007]
[1724931949040,0.39004,2563.2,2563.0,0.39007]
[1724931949235,1.124,2563.3,2563.2,0.39003]
[1724931949439,1.1377,2563.4,2563.3,0.39002]
[1724931949646,2.2617,2563.4,2563.3,0.39002]
[1724931949947,6.54922358,2563.4,2563.3,0.39002]
[1724931950535,10.45002358,2563.4,2562.8,3.2078]
[1724931950735,10.45002358,2563.4,2562.8,0.39008]
[1724931950736,0.39005,2563.1,2562.8,0.39008]
[1724931951143,5.41984312,2563.0,2562.9,0.39008]
[1724931951740,5.80991312,2563.0,2562.8,0.39009]
[1724931951945,0.39011,2562.8,2562.6,3.59792]
[1724931952138,1.1354,2562.9,2562.7,0.39011]
[1724931952139,1.52549,2562.9,2562.7,0.39011]
[1724931952344,4.3600259,2562.7,2562.6,0.39013]
[1724931952542,4.3600259,2562.8,2562.7,0.39011]
[1724931953046,1.1354,2562.9,2562.8,0.3901]
[1724931953445,4.33451096,2562.9,2562.8,4.2917]
[1724931953644,1.0684,2563.0,2562.9,0.39008]
[1724931953949,5.36699086,2563.0,2562.9,0.39008]
[1724931954544,3.2078,2563.2,2562.9,4.87681]
[1724931954748,3.2078,2563.2,2563.1,0.39005]
[1724931955243,7.62204411,2563.2,2563.1,0.39005]
[1724931955442,7.62204411,2563.2,2563.0,0.97516]
[1724931955443,7.62204411,2563.2,2563.0,0.39006]
[1724931955647,1.1678,2563.1,2563.0,0.39006]
[1724931955844,1.1678,2563.1,2562.6,1.0897]
[1724931956050,1.1486,2563.0,2562.4,3.87850875]
[1724931956240,0.39012,2562.7,2562.6,0.39013]
[1724931956437,0.3901,2562.8,2562.7,0.39011]
[1724931956841,0.39012,2562.7,2562.5,0.39014]
[1724931957037,1.1217,2562.7,2562.6,0.39012]
[1724931957441,5.23630615,2562.7,2562.6,0.39012]
[1724931958051,5.23630615,2562.7,2562.5,0.39013]
[1724931958244,1.53873,2562.6,2562.4,3.87850875]
[1724931958445,1.1486,2562.6,2562.5,0.39014]
[1724931958747,4.33702296,2562.5,2562.4,4.26865875]
[1724931958949,14.6397082,2562.6,2562.2,0.0058548]
[1724931959141,14.6397082,2562.6,2561.7,3.2078]
[1724931959142,3.9024,2562.5,2561.9,0.39023]
[1724931959349,3.9024,2562.5,2561.7,7.6978]
[1724931959350,4.41841545,2562.5,2561.7,7.6978]
[1724931959546,0.39018,2562.3,2561.9,0.39022]
[1724931959750,4.41841545,2562.5,2561.7,7.6978]
[1724931959946,0.39021,2562.1,2561.7,8.08805]
[1724931960145,1.1732,2562.0,2561.7,8.08805]
[1724931960447,1.1732,2562.0,2561.7,3.59806]
[1724931960448,5.37183061,2562.0,2561.7,3.59806]
[1724931960640,5.37183061,2562.0,2561.8,0.39024]
[1724931960851,5.37183061,2562.0,2561.9,0.39023]
[1724931961052,5.37183061,2562.0,2561.7,3.59805]
[1724931961254,5.37183061,2562.0,2561.7,3.2078]
[1724931961447,8.57963061,2562.0,2561.6,0.67656355]
[1724931961646,0.39025,2561.8,2561.6,0.67656355]
[1724931961847,0.39025,2561.8,2561.6,0.0058548]
[1724931962146,5.22078078,2561.7,2561.6,0.0058548]
[1724931962462,6.33818078,2561.7,2561.6,0.0058548]
[1724931962654,10.63244078,2561.7,2561.6,0.0058548]
[1724931962950,10.24218078,2561.7,2561.6,0.0058548]
[1724931963155,10.63244078,2561.7,2561.6,0.0058548]
[1724931963451,19.44998078,2561.7,2560.9,7.52870875]